bitfinex-derivatives/quotes_BTCF0:USTF0_20251215
["timestamp","ask_amount","ask_price","bid_price","bid_amount"]
[1765804463860,0.18678,89600.0,89599.0,0.001]
[1765804464060,0.24305,89600.0,89599.0,0.001]
[1765804464571,0.24305,89600.0,89584.0,0.08026079]
[1765804464572,0.0842128,89585.0,89584.0,0.08026079]
[1765804464773,0.05627,89561.0,89560.0,0.05472]
[1765804465369,0.0111613,89597.0,89570.0,0.09993121]
[1765804465570,0.0111613,89597.0,89594.0,0.3608]
[1765804465873,0.05627,89597.0,89596.0,0.0111614]
[1765804466067,0.05627,89597.0,89596.0,0.5529214]
[1765804466272,0.05627,89597.0,89596.0,0.54176]
[1765804467873,0.05627,89597.0,89594.0,0.3608]
[1765804468060,0.05627,89597.0,89595.0,0.69348]
[1765804468262,0.05627,89597.0,89596.0,0.001]
[1765804468870,0.05627,89597.0,89596.0,0.003]
[1765804469175,0.05627,89597.0,89596.0,0.09327168]
[1765804471372,0.05627,89597.0,89596.0,0.69992]
[1765804471577,0.067392,89591.0,89590.0,0.02768167]
[1765804471771,0.05623,89589.0,89588.0,0.35020748]
[1765804473480,0.05623,89589.0,89588.0,0.35120748]
[1765804473777,0.05623,89589.0,89588.0,0.36236988]
[1765804474571,0.05623,89589.0,89588.0,0.36336988]
[1765804476684,0.05623,89589.0,89588.0,0.35220748]
[1765804477479,0.05623,89589.0,89588.0,0.35120748]
[1765804477686,0.05623,89589.0,89588.0,0.35220748]
[1765804478386,0.05623,89589.0,89588.0,0.35120748]
[1765804478575,0.05623,89589.0,89588.0,0.35220748]
[1765804478774,0.05623,89589.0,89588.0,0.35120748]
[1765804479082,0.05623,89589.0,89588.0,0.35220748]
[1765804481182,0.05623,89589.0,89588.0,0.35120748]
[1765804481388,0.05623,89589.0,89588.0,0.35220748]
[1765804481588,0.0673923,89589.0,89588.0,0.35220748]
[1765804483296,0.2011623,89589.0,89580.0,0.08803775]
[1765804483474,0.0673949,89568.0,89567.0,0.02756877]
[1765804483789,0.05623,89562.0,89561.0,0.0801681]
[1765804484085,0.05623,89562.0,89561.0,0.69792]
[1765804484477,0.05623,89562.0,89561.0,1.05872]
[1765804486087,0.01808748,89570.0,89566.0,0.011165]
[1765804486386,0.01808748,89570.0,89568.0,0.0111648]
[1765804487683,0.01792,89586.0,89583.0,0.0111629]
[1765804487892,0.01792,89586.0,89584.0,0.69804]
[1765804488587,0.01792,89586.0,89585.0,0.0111628]
[1765804490390,0.01792,89586.0,89585.0,0.0141628]
[1765804491089,0.04562,89586.0,89585.0,0.0141628]
[1765804491280,0.04562,89586.0,89585.0,0.0171628]
[1765804492387,0.01792,89586.0,89585.0,0.0171628]
[1765804492773,0.01792,89592.0,89591.0,0.011162]
[1765804493178,0.04562,89592.0,89591.0,0.011162]
[1765804493484,0.07415,89592.0,89591.0,0.011162]
[1765804494480,0.01792,89586.0,89585.0,0.003]
[1765804495079,0.01792,89586.0,89585.0,0.0111628]
[1765804495592,0.04562,89586.0,89585.0,0.0111628]
[1765804495885,0.07415,89586.0,89585.0,0.0111628]
[1765804496682,0.07415,89586.0,89585.0,0.0141628]
[1765804497489,0.07415,89586.0,89585.0,0.0171628]
[1765804497686,0.07415,89586.0,89585.0,0.0141628]
[1765804497884,0.07415,89586.0,89585.0,0.0171628]
[1765804498292,0.07415,89586.0,89585.0,0.0141628]
[1765804498485,0.07415,89586.0,89585.0,0.0171628]
[1765804500489,0.07415,89586.0,89585.0,0.0141628]
[1765804500686,0.07415,89586.0,89585.0,0.0171628]
[1765804501394,0.07415,89586.0,89585.0,0.0161628]
[1765804501891,0.07415,89586.0,89585.0,0.0131628]
[1765804502093,0.07415,89586.0,89585.0,0.0151628]
[1765804502288,0.07415,89586.0,89585.0,0.004]
[1765804504092,0.07415,89586.0,89585.0,0.002]
[1765804504293,0.07415,89586.0,89585.0,0.004]
[1765804505200,0.05698,89585.0,89584.0,0.69804]
[1765804507603,0.05698,89585.0,89584.0,0.7092029]
[1765804508196,0.05698,89585.0,89584.0,0.7132029]
[1765804510799,0.05698,89585.0,89584.0,0.7112029]
[1765804511001,0.05698,89585.0,89584.0,0.7132029]
[1765804513202,0.05698,89585.0,89584.0,0.70204]
[1765804513602,0.05698,89585.0,89584.0,0.7132029]
[1765804516000,0.05698,89585.0,89584.0,0.70204]
[1765804523299,0.05698,89585.0,89584.0,0.88744]
[1765804523708,0.0681428,89585.0,89584.0,0.70204]
[1765804524699,0.05698,89585.0,89584.0,0.70204]
[1765804524904,0.0681428,89585.0,89584.0,0.70204]
[1765804527300,0.05698,89585.0,89584.0,0.7132029]
[1765804531010,0.05698,89585.0,89584.0,0.70204]
[1765804531307,0.01792,89586.0,89584.0,0.70204]
[1765804531515,0.01792,89586.0,89585.0,0.09152795]
[1765804531914,0.01792,89592.0,89591.0,0.011162]
[1765804532615,0.07405,89592.0,89589.0,0.0111623]
[1765804533202,0.07405,89592.0,89589.0,0.10184292]
[1765804533408,0.07405,89592.0,89591.0,0.001]
[1765804533607,0.07405,89592.0,89591.0,0.002]
[1765804535405,0.07405,89592.0,89591.0,0.001]
[1765804535605,0.3719618,89593.0,89591.0,0.001]
[1765804535606,0.3608,89593.0,89592.0,0.0111619]
[1765804535806,0.00012686,89594.0,89592.0,0.0111619]
[1765804536917,0.00012686,89594.0,89592.0,0.11137203]
[1765804537120,0.00012686,89594.0,89593.0,0.10021013]
[1765804537416,0.00012686,89594.0,89592.0,0.0121619]
[1765804538619,0.00012686,89594.0,89592.0,0.0131619]
[1765804539615,0.00012686,89594.0,89592.0,0.0151619]
[1765804543920,0.01763,89604.0,89592.0,0.0151619]
[1765804543921,0.01763,89604.0,89603.0,0.0111605]
[1765804544116,0.01763,89604.0,89603.0,0.7086005]
[1765804547127,0.01763,89604.0,89603.0,0.8939005]
[1765804549229,0.01763,89604.0,89603.0,0.9216786]
[1765804551329,0.07589,89604.0,89603.0,0.9216786]
[1765804551528,0.01763,89604.0,89603.0,0.9216786]
[1765804556036,0.07589,89604.0,89603.0,0.9216786]
[1765804556738,0.01763,89604.0,89603.0,0.9216786]
[1765804556935,0.04653,89604.0,89603.0,0.9216786]
[1765804558040,0.07589,89604.0,89603.0,0.9216786]
[1765804558936,0.01763,89604.0,89603.0,0.9216786]
[1765804564333,0.01763,89604.0,89603.0,1.00184942]
[1765804565145,0.01763,89604.0,89603.0,1.00194386]
[1765804565445,0.01763,89604.0,89603.0,0.9216786]
[1765804571951,0.01648,89610.0,89609.0,0.0111598]
[1765804572252,0.11648,89610.0,89609.0,0.0111598]
[1765804572652,0.01648,89610.0,89609.0,0.0111598]
[1765804572848,0.05608,89608.0,89607.0,0.3608]
[1765804573040,0.07256,89604.0,89603.0,0.10021013]
[1765804573240,0.05608,89601.0,89600.0,0.0111609]
[1765804573444,0.05608,89601.0,89600.0,0.7084809]
[1765804573644,0.05608,89601.0,89600.0,0.73682901]
[1765804575352,0.05608,89601.0,89600.0,0.08035642]
[1765804575353,0.2172408,89601.0,89600.0,0.08035642]
[1765804575555,0.2172408,89601.0,89595.0,0.00016748]
[1765804575556,0.07256,89596.0,89595.0,0.00016748]
[1765804575747,0.21256,89596.0,89595.0,0.69744748]
[1765804576055,0.43336,89596.0,89595.0,0.69744748]
[1765804576456,0.57336,89596.0,89595.0,0.69744748]
[1765804576756,0.05608,89594.0,89593.0,0.01539535]
[1765804577053,0.19608,89594.0,89593.0,0.69728]
[1765804578249,0.19608,89594.0,89585.0,0.00016748]
[1765804578250,0.0672426,89586.0,89585.0,0.00016748]
[1765804578440,0.6080426,89586.0,89585.0,0.00016748]
[1765804579449,0.5680426,89586.0,89585.0,0.00016748]
[1765804580546,0.5690426,89586.0,89585.0,0.00016748]
[1765804581147,0.5700426,89586.0,89585.0,0.00016748]
[1765804581548,0.07256,89575.0,89574.0,0.02997]
[1765804581749,0.22256,89575.0,89574.0,0.02997]
[1765804582254,0.07256,89575.0,89574.0,0.05835]
[1765804584361,0.25256,89575.0,89574.0,0.05835]
[1765804584562,0.07256,89575.0,89574.0,0.05835]
[1765804585756,0.27256,89575.0,89574.0,0.05835]
[1765804587345,0.27256,89575.0,89574.0,0.02997]
[1765804588162,0.27256,89575.0,89574.0,0.05835]
[1765804589258,0.27256,89575.0,89574.0,0.02997]
[1765804589463,0.0672445,89571.0,89570.0,0.63608]
[1765804589758,0.2672445,89571.0,89570.0,0.63608]
[1765804590964,0.2672445,89571.0,89570.0,0.63708]
[1765804591165,0.2672445,89571.0,89570.0,0.001]
[1765804591658,0.067065,89567.0,89566.0,0.00016748]
[1765804591860,0.597865,89567.0,89566.0,0.00016748]
[1765804592065,0.607865,89567.0,89566.0,0.00016748]
[1765804592461,0.607865,89567.0,89555.0,0.68252]
[1765804592462,0.0834064,89556.0,89555.0,0.74015]
[1765804594052,0.0834064,89556.0,89555.0,0.74315]
[1765804594965,0.0834064,89556.0,89555.0,0.74615]
[1765804598264,0.0670264,89556.0,89555.0,0.74615]
[1765804598854,0.05586,89556.0,89555.0,0.74615]
[1765804599457,0.07224,89556.0,89555.0,0.74615]
[1765804599768,0.22224,89556.0,89555.0,0.74615]
[1765804599969,0.22224,89556.0,89555.0,0.68852]
[1765804600156,0.22224,89556.0,89555.0,0.71794]
[1765804600356,0.07224,89556.0,89555.0,0.74615]
[1765804600565,0.05586,89556.0,89555.0,0.74615]
[1765804600768,0.02781,89556.0,89555.0,0.74615]
[1765804601064,0.05586,89556.0,89555.0,0.74615]
[1765804605563,0.07224,89556.0,89555.0,0.74615]
[1765804609562,0.3608,89558.0,89557.0,0.05763]
[1765804609871,0.00016748,89564.0,89563.0,0.0687955]
[1765804610067,0.05602748,89564.0,89563.0,0.0687955]
[1765804610375,0.00016748,89564.0,89563.0,0.0687955]
[1765804610766,0.02797748,89564.0,89563.0,0.05763]
[1765804610971,0.05602748,89564.0,89563.0,0.05763]
[1765804611570,0.05602748,89564.0,89557.0,0.003]
[1765804611571,0.0670261,89558.0,89557.0,0.003]
[1765804611765,0.5478261,89558.0,89557.0,0.003]
[1765804612076,0.5478261,89558.0,89557.0,0.03242]
[1765804612278,0.5478261,89558.0,89557.0,0.06063]
[1765804612979,0.5478261,89558.0,89557.0,0.05763]
[1765804613378,0.5478261,89558.0,89557.0,0.06063]
[1765804614475,0.5478261,89558.0,89557.0,0.06363]
[1765804614979,0.5678261,89558.0,89557.0,0.06363]
[1765804615675,0.5678261,89558.0,89557.0,0.06363]
[1765804616470,0.4278261,89558.0,89557.0,0.06363]
[1765804617075,0.6278261,89558.0,89557.0,0.06363]
[1765804617278,0.4278261,89558.0,89557.0,0.06363]
[1765804617485,0.5978261,89558.0,89557.0,0.06363]
[1765804618881,0.5978261,89558.0,89557.0,0.03542]
[1765804619477,0.5978261,89558.0,89557.0,0.006]
[1765804620982,0.62284269,89558.0,89557.0,0.006]
[1765804622185,0.62284269,89558.0,89557.0,0.06396]
[1765804624090,0.62284269,89558.0,89557.0,0.006]
[1765804624289,0.62284269,89558.0,89557.0,0.03445]
[1765804624691,0.4278261,89558.0,89557.0,0.06299]
[1765804626385,0.6178261,89558.0,89557.0,0.06299]
[1765804626583,0.4278261,89558.0,89557.0,0.06299]
[1765804631289,0.6078261,89558.0,89557.0,0.06299]
[1765804631493,0.5978261,89558.0,89557.0,0.006]
[1765804631693,0.6278261,89558.0,89557.0,0.006]
[1765804631992,0.6078261,89558.0,89557.0,0.006]
[1765804632196,0.6278261,89558.0,89557.0,0.006]
[1765804635288,0.6278261,89558.0,89557.0,0.03445]
[1765804635699,0.6278261,89558.0,89557.0,0.06299]
[1765804636798,0.6278261,89558.0,89557.0,0.03445]
[1765804636989,0.6278261,89558.0,89557.0,0.006]
[1765804637795,0.6278261,89558.0,89557.0,0.03445]
[1765804638101,0.6278261,89558.0,89557.0,0.06299]
[1765804639185,0.4278261,89558.0,89557.0,0.06299]
[1765804639391,0.5578261,89558.0,89557.0,0.06299]
[1765804639700,0.4278261,89558.0,89557.0,0.06299]
[1765804639900,0.5778261,89558.0,89557.0,0.06299]
[1765804644706,0.4278261,89558.0,89557.0,0.06299]
[1765804644905,0.5778261,89558.0,89557.0,0.06299]
[1765804647705,0.60273179,89558.0,89557.0,0.006]
[1765804649409,0.0850974,89548.0,89547.0,0.00016748]
[1765804649710,0.2850974,89548.0,89547.0,0.02861748]
[1765804649907,0.2850974,89548.0,89547.0,0.05715748]
[1765804650398,0.0850974,89548.0,89547.0,0.05715748]
[1765804650594,0.0850974,89548.0,89547.0,0.06115748]
[1765804650902,0.0850974,89548.0,89547.0,0.06615748]
[1765804655906,0.0111674,89548.0,89547.0,0.06615748]
[1765804656106,0.07292,89552.0,89551.0,0.05883]
[1765804656306,0.07292,89552.0,89551.0,0.41963]
[1765804657397,0.07292,89552.0,89551.0,0.42263]
[1765804658005,0.07292,89552.0,89551.0,0.433797]
[1765804658206,0.07292,89556.0,89555.0,0.05883]
[1765804659011,0.0840864,89556.0,89555.0,0.05883]
[1765804659403,0.0840864,89556.0,89555.0,0.06083]
[1765804661005,0.0840864,89556.0,89555.0,0.06283]
[1765804661208,0.0840864,89556.0,89555.0,0.76063]
[1765804662813,0.2540864,89556.0,89555.0,0.7313]
[1765804663118,0.0840864,89556.0,89555.0,0.0335]
[1765804663318,0.0840864,89556.0,89555.0,0.004]
[1765804663612,0.0840864,89556.0,89555.0,0.0335]
[1765804663816,0.2840864,89556.0,89555.0,0.0335]
[1765804664116,0.2840864,89556.0,89555.0,0.004]
[1765804664616,0.30883535,89556.0,89555.0,0.004]
[1765804670316,0.0841074,89548.0,89547.0,0.00016748]
[1765804670516,0.6249074,89548.0,89547.0,0.00016748]
[1765804670718,0.5749074,89548.0,89547.0,0.00016748]
[1765804671921,0.5749074,89548.0,89547.0,0.00316748]
[1765804672924,0.5749074,89548.0,89547.0,0.00616748]
[1765804674731,0.5749074,89548.0,89547.0,0.03566748]
[1765804675521,0.5749074,89548.0,89547.0,0.00616748]
[1765804677328,0.5749074,89548.0,89547.0,0.06499748]
[1765804677530,0.5749074,89548.0,89547.0,0.03566748]
[1765804678129,0.5749074,89548.0,89547.0,0.00616748]
[1765804680229,0.5749074,89548.0,89538.0,0.0022337]
[1765804680230,0.0674276,89546.0,89538.0,0.0022337]
[1765804680425,0.05626,89545.0,89538.0,0.0022337]
[1765804680627,0.24626,89545.0,89538.0,0.0022337]
[1765804681221,0.24626,89545.0,89544.0,0.01369094]
[1765804682333,0.24626,89545.0,89544.0,0.01669094]
[1765804682532,0.24626,89545.0,89544.0,0.01969094]
[1765804682831,0.24626,89545.0,89544.0,0.07702094]
[1765804683038,0.05626,89545.0,89544.0,0.07702094]
[1765804685636,0.20626,89545.0,89544.0,0.01969094]
[1765804686340,0.20626,89545.0,89544.0,0.07702094]
[1765804686537,0.05626,89545.0,89544.0,0.07702094]
[1765804686838,0.07626,89545.0,89544.0,0.07702094]
[1765804690540,0.05626,89545.0,89544.0,0.07702094]
[1765804693130,0.22626,89545.0,89544.0,0.01969094]
[1765804693731,0.22626,89545.0,89544.0,0.04886094]
[1765804694338,0.05626,89545.0,89544.0,0.01969094]
[1765804694534,0.05626,89545.0,89544.0,0.04886094]
[1765804695131,0.25626,89545.0,89544.0,0.01969094]
[1765804696346,0.0686085,89539.0,89538.0,0.0022337]
[1765804696641,0.6094085,89539.0,89538.0,0.0022337]
[1765804697346,0.60952572,89539.0,89538.0,0.01527268]
[1765804697646,0.60952572,89539.0,89538.0,0.02227268]
[1765804704550,0.60952572,89539.0,89538.0,0.05144268]
[1765804704853,0.60952572,89539.0,89538.0,0.07960268]
[1765804705052,0.05744,89527.0,89525.0,0.08035642]
[1765804705247,0.05744,89517.0,89516.0,0.02917]
[1765804705439,0.05744,89517.0,89516.0,0.05733]
[1765804705654,0.05744,89517.0,89516.0,0.07070437]
[1765804708357,0.06044,89517.0,89516.0,0.07170437]
[1765804708552,0.06244,89517.0,89516.0,0.07170437]
[1765804709052,0.06344,89517.0,89516.0,0.07170437]
[1765804710355,0.06144,89517.0,89516.0,0.07170437]
[1765804710549,0.06344,89517.0,89516.0,0.07170437]
[1765804712259,0.05944,89517.0,89516.0,0.07070437]
[1765804712560,0.06344,89517.0,89516.0,0.07170437]
[1765804713455,0.06344,89517.0,89516.0,0.76966437]
[1765804714359,0.06144,89517.0,89516.0,0.76966437]
[1765804714563,0.06344,89517.0,89516.0,0.76966437]
[1765804715758,0.06244,89517.0,89516.0,0.76966437]
[1765804717255,0.06044,89517.0,89516.0,0.76966437]
[1765804717455,0.06244,89517.0,89516.0,0.76966437]
[1765804717767,0.05944,89517.0,89516.0,0.76866437]
[1765804718064,0.06344,89517.0,89516.0,0.76966437]
[1765804718265,0.06144,89517.0,89516.0,0.76966437]
[1765804718560,0.05944,89517.0,89516.0,0.76866437]
[1765804718761,0.06344,89517.0,89516.0,0.76966437]
[1765804719150,0.06344,89517.0,89516.0,0.76866437]
[1765804719356,0.06344,89517.0,89516.0,0.76966437]
[1765804720457,0.06144,89517.0,89516.0,0.76966437]
[1765804720657,0.06344,89517.0,89516.0,0.76966437]
[1765804721458,0.06144,89517.0,89516.0,0.76966437]
[1765804721653,0.06344,89517.0,89516.0,0.76966437]
[1765804721864,0.06344,89517.0,89516.0,0.76866437]
[1765804722065,0.06344,89517.0,89516.0,0.76966437]
[1765804723962,0.06144,89517.0,89516.0,0.76966437]
[1765804724170,0.06344,89517.0,89516.0,0.76966437]
[1765804724668,0.0706112,89517.0,89516.0,0.76866437]
[1765804724858,0.0746112,89517.0,89516.0,0.76966437]
[1765804725668,0.0736112,89517.0,89516.0,0.76966437]
[1765804726471,0.0746112,89517.0,89516.0,0.76966437]
[1765804726669,0.0171712,89517.0,89516.0,0.77804437]
[1765804727363,0.006,89517.0,89516.0,0.78921577]
[1765804729955,0.002,89517.0,89516.0,0.78821577]
[1765804730161,0.005,89517.0,89516.0,0.78921577]
[1765804730769,0.003,89517.0,89516.0,0.78921577]
[1765804730969,0.004,89517.0,89516.0,0.78921577]
[1765804731771,0.003,89517.0,89516.0,0.78921577]
[1765804732069,0.004,89517.0,89516.0,0.78921577]
[1765804732274,0.001,89517.0,89516.0,0.78821577]
[1765804732468,0.004,89517.0,89516.0,0.78921577]
[1765804733361,0.0727112,89517.0,89516.0,0.77133437]
[1765804733565,0.2227112,89517.0,89516.0,0.01437437]
[1765804734172,0.2217112,89517.0,89516.0,0.01437437]
[1765804734475,0.24824561,89517.0,89516.0,0.001]
[1765804734674,0.24824561,89517.0,89516.0,0.03091]
[1765804735168,0.24424561,89517.0,89516.0,0.05974]
[1765804735362,0.2227112,89517.0,89516.0,0.06074]
[1765804736065,0.2217112,89517.0,89516.0,0.06074]
[1765804736265,0.2247112,89517.0,89516.0,0.07419793]
[1765804736767,0.2217112,89517.0,89516.0,0.07419793]
[1765804736975,0.2267112,89517.0,89516.0,0.07419793]
[1765804739068,0.2267112,89517.0,89516.0,0.04436793]
[1765804739267,0.2267112,89517.0,89516.0,0.01445793]
[1765804740262,0.2267112,89517.0,89516.0,0.07419793]
[1765804740459,0.2267112,89517.0,89516.0,0.01445793]
[1765804741061,0.2267112,89517.0,89516.0,0.04436793]
[1765804742865,0.0693722,89509.0,89508.0,0.00016748]
[1765804743064,0.65568206,89509.0,89508.0,0.00016748]
[1765804745064,0.6301722,89509.0,89508.0,0.05723748]
[1765804745372,0.6351722,89509.0,89508.0,0.05823748]
[1765804747173,0.6351722,89509.0,89508.0,0.00116748]
[1765804748869,0.6351722,89509.0,89508.0,0.02887748]
[1765804749183,0.6351722,89509.0,89508.0,0.00116748]
[1765804749680,0.6351722,89509.0,89508.0,8e-08]
[1765804750177,0.0582,89499.0,89498.0,0.0022347]
[1765804750378,0.609,89499.0,89498.0,0.0022347]
[1765804750574,0.6201735,89499.0,89498.0,0.01693626]
[1765804750874,0.5001735,89499.0,89498.0,0.0022347]
[1765804751064,0.6001735,89499.0,89498.0,0.0022347]
[1765804752471,0.6001735,89499.0,89498.0,0.0032347]
[1765804752671,0.6021735,89499.0,89498.0,0.0032347]
[1765804753180,0.6021735,89499.0,89498.0,0.01808039]
[1765804753480,0.0404145,89491.0,89490.0,0.05718201]
[1765804753679,0.4012145,89491.0,89490.0,0.05718201]
[1765804753877,0.4012145,89491.0,89490.0,0.08936456]
[1765804754470,0.4301745,89491.0,89490.0,0.08936456]
[1765804754676,0.0693745,89491.0,89490.0,0.08936456]
[1765804754973,0.0693745,89491.0,89490.0,0.09036456]
[1765804755983,0.0703745,89491.0,89490.0,0.09036456]
[1765804756191,0.01688,89505.0,89490.0,0.09036456]
[1765804756192,0.015,89505.0,89495.0,0.00518]
[1765804756381,0.01688,89530.0,89524.0,0.0111704]
[1765804756582,0.01688,89535.0,89527.0,0.08014974]
[1765804756771,0.01688,89535.0,89525.0,0.49694]
[1765804756772,0.01688,89530.0,89525.0,0.74050804]
[1765804756978,0.01688,89530.0,89529.0,0.3608]
[1765804757172,0.01688,89530.0,89527.0,0.01117]
[1765804757379,0.01688,89530.0,89529.0,0.3608]
[1765804757581,0.01696388,89530.0,89529.0,0.3608]
[1765804757980,0.07516388,89530.0,89529.0,0.3608]
[1765804758775,0.07492392,89530.0,89529.0,0.3608]
[1765804759087,0.09309352,89530.0,89529.0,0.3608]
[1765804759474,0.09309352,89530.0,89529.0,0.3618]
[1765804759675,0.08609352,89530.0,89529.0,0.3618]
[1765804759883,0.08809352,89530.0,89529.0,0.3628]
[1765804760989,0.07692392,89530.0,89529.0,0.3628]
[1765804768181,0.07692392,89530.0,89529.0,0.002]
[1765804768182,0.25692392,89530.0,89529.0,0.002]
[1765804768586,0.07692392,89530.0,89529.0,0.002]
[1765804768779,0.27692392,89530.0,89529.0,0.002]
[1765804768991,0.07692392,89530.0,89529.0,0.002]
[1765804769690,0.07992392,89530.0,89529.0,0.001]
[1765804770297,0.05758,89524.0,89523.0,0.08858512]
[1765804770499,0.05548,89523.0,89522.0,0.3608]
[1765804771902,0.06048,89523.0,89522.0,0.3618]
[1765804772996,0.06248,89523.0,89522.0,0.3618]
[1765804773400,0.18248,89523.0,89522.0,0.45151198]
[1765804773797,0.17748,89523.0,89522.0,0.45051198]
[1765804773998,0.18148,89523.0,89522.0,0.45151198]
[1765804774607,0.17748,89523.0,89522.0,0.45051198]
[1765804774801,0.18148,89523.0,89522.0,0.3618]
[1765804779700,0.18148,89523.0,89522.0,0.001]
[1765804780101,0.0843127,89505.0,89500.0,0.20452356]
[1765804780405,0.0843127,89505.0,89500.0,0.0111733]
[1765804780609,0.0843127,89505.0,89502.0,0.02805242]
[1765804781012,0.0843127,89505.0,89503.0,0.0111729]
[1765804781211,0.0843127,89505.0,89502.0,0.02805242]
[1765804781612,0.0853127,89505.0,89502.0,0.02805242]
[1765804782013,0.0853127,89505.0,89504.0,0.98752511]
[1765804782309,0.0853127,89505.0,89504.0,0.45308511]
[1765804782502,0.2853127,89505.0,89504.0,0.45308511]
[1765804782701,0.2853127,89505.0,89504.0,0.3618]
[1765804785214,0.2853127,89505.0,89504.0,0.45015369]
[1765804786804,0.2853127,89505.0,89504.0,0.3618]
[1765804787005,0.28539633,89505.0,89504.0,0.001]
[1765804788613,0.0672937,89497.0,89496.0,0.00011201]
[1765804788814,0.2672937,89497.0,89496.0,0.00011201]
[1765804789908,0.2672937,89497.0,89496.0,0.00111201]
[1765804791411,0.2682937,89497.0,89496.0,0.00211201]
[1765804801128,0.2682937,89497.0,89496.0,2.01e-06]
[1765804801821,0.0659945,89491.0,89490.0,0.01483255]
[1765804802026,0.05594,89489.0,89488.0,0.69904]
[1765804802224,0.21594,89489.0,89488.0,0.69904]
[1765804802420,0.21594,89489.0,89488.0,0.71356091]
[1765804802624,0.07594,89489.0,89488.0,0.71356091]
[1765804803227,0.07594,89489.0,89488.0,0.71456091]
[1765804803620,0.02,89489.0,89488.0,0.71456091]
[1765804803822,0.01737,89490.0,89489.0,0.0111747]
[1765804805928,0.01737,89490.0,89489.0,0.0121747]
[1765804806124,0.01737,89490.0,89489.0,0.092289]
[1765804806325,0.01837,89490.0,89489.0,0.0131747]
[1765804807229,0.001,89490.0,89489.0,0.0131747]
[1765804807731,0.01837,89490.0,89489.0,0.0131747]
[1765804823052,0.07431,89490.0,89489.0,0.0131747]
[1765804824642,0.01837,89490.0,89489.0,0.0131747]
[1765804827754,0.07431,89490.0,89489.0,0.0131747]
[1765804832351,0.07431,89490.0,89489.0,0.11331757]
[1765804833452,0.07431,89490.0,89489.0,0.0131747]
[1765804833754,0.01837,89490.0,89489.0,0.0131747]
[1765804833959,0.07386,89495.0,89494.0,0.0111741]
[1765804834139,0.07386,89495.0,89494.0,1.0705341]
[1765804835759,0.07586,89495.0,89494.0,1.0715341]
[1765804837253,0.07586,89495.0,89494.0,1.17205556]
[1765804838857,0.07586,89495.0,89494.0,1.2000239]
[1765804840244,0.01937,89495.0,89494.0,1.2000239]
[1765804840760,0.07586,89495.0,89494.0,1.09950244]
[1765804841372,0.07586,89495.0,89494.0,1.19999057]
[1765804842977,0.07586,89495.0,89494.0,1.09950244]
[1765804850185,0.07586,89495.0,89494.0,1.46030244]
[1765804855491,0.07586,89495.0,89494.0,1.44912834]
[1765804856081,0.07586,89495.0,89494.0,1.42116]
[1765804861285,0.27586,89495.0,89494.0,1.42092]
[1765804866198,0.14586,89495.0,89494.0,1.42092]
[1765804871099,0.14562003,89495.0,89494.0,1.42092]
[1765804873103,0.07562003,89495.0,89494.0,1.42092]
[1765804877006,0.01913003,89495.0,89494.0,1.42092]
[1765804877313,0.01702,89500.0,89499.0,0.0230135]
[1765804877617,0.01702,89500.0,89499.0,0.7213735]
[1765804878895,0.04888,89500.0,89499.0,0.7223735]
[1765804879205,0.003,89500.0,89499.0,0.80272111]
[1765804879711,0.02192,89500.0,89499.0,0.80272111]
[1765804880510,0.02092,89500.0,89499.0,0.80272111]
[1765804881205,0.01892,89500.0,89499.0,0.80272111]
[1765804881507,0.01892,89500.0,89499.0,0.7223735]
[1765804882112,0.01892,89500.0,89499.0,0.80272559]
[1765804882322,0.01892,89500.0,89499.0,0.7223735]
[1765804882612,0.01792,89500.0,89499.0,0.74973964]
[1765804882906,0.01892,89500.0,89499.0,0.75073964]
[1765804884406,0.001,89500.0,89499.0,0.75073964]
[1765804885413,0.04678,89504.0,89503.0,0.023013]
[1765804885613,0.04678,89504.0,89503.0,0.383813]
[1765804886314,0.0756,89504.0,89503.0,0.383813]
[1765804886607,0.0756,89504.0,89503.0,0.37264]
[1765804887025,0.2176,89504.0,89503.0,0.37364]
[1765804887315,0.2186,89504.0,89503.0,0.37364]
[1765804887612,0.0786,89504.0,89503.0,0.37364]
[1765804888011,0.2476,89504.0,89503.0,0.37364]
[1765804888211,0.2496,89504.0,89503.0,0.37364]
[1765804889112,0.2506,89504.0,89503.0,0.37364]
[1765804889708,0.2506,89504.0,89503.0,0.36772]
[1765804890110,0.2506,89504.0,89503.0,0.3618]
[1765804890510,0.2506,89504.0,89503.0,0.36772]
[1765804890708,0.2506,89504.0,89503.0,0.3618]
[1765804891408,0.2506,89504.0,89503.0,0.36772]
[1765804893813,0.2506,89504.0,89503.0,0.3618]
[1765804895719,0.2506,89504.0,89503.0,0.001]
[1765804896715,0.0569,89502.0,89501.0,0.65432]
[1765804896915,0.2569,89502.0,89501.0,0.64066061]
[1765804897324,0.0856939,89496.0,89495.0,0.3608]
[1765804897522,0.2556939,89496.0,89495.0,0.3608]
[1765804897722,0.0680747,89489.0,89488.0,0.07408091]
[1765804897919,0.2380747,89489.0,89488.0,0.07408091]
[1765804898226,0.2380747,89489.0,89488.0,0.01452091]
[1765804898417,0.0680751,89486.0,89485.0,0.42036]
[1765804899917,0.0690751,89486.0,89485.0,0.42136]
[1765804900117,0.0690751,89486.0,89485.0,0.43820366]
[1765804901335,0.0690751,89486.0,89485.0,0.44020366]
[1765804902316,0.2290751,89486.0,89485.0,0.44020366]
[1765804902625,0.2590751,89486.0,89485.0,0.44020366]
[1765804904615,0.0890751,89486.0,89485.0,0.44020366]
[1765804904827,0.2690751,89486.0,89485.0,0.44020366]
[1765804905121,0.0890751,89486.0,89485.0,0.44020366]
[1765804907925,0.1990751,89486.0,89485.0,0.41050366]
[1765804908111,0.1990751,89486.0,89485.0,0.44020366]
[1765804909715,0.1990751,89486.0,89485.0,0.07940366]
[1765804915135,0.0690751,89486.0,89485.0,0.07940366]
[1765804915322,0.0890751,89486.0,89485.0,0.07940366]
[1765804917032,0.0690751,89486.0,89485.0,0.07940366]
[1765804919231,0.2290751,89486.0,89485.0,0.07940366]
[1765804920234,0.0690751,89486.0,89485.0,0.07940366]
[1765804921634,0.2290751,89486.0,89485.0,0.07940366]
[1765804921829,0.1690751,89486.0,89485.0,0.07940366]
[1765804922030,0.1690751,89486.0,89485.0,0.07825366]
[1765804922534,0.1690751,89486.0,89485.0,0.01984366]